fUST/lending_fUST_20250929
["ID","MTS","AMOUNT","RATE_DAILY","PERIOD"]
[388337661,1759104632226,-1007.0,0.00025205,2]
[388337662,1759104632236,-395.61480512,0.00025205,2]
[388337663,1759104632245,-1000.0,0.00025411,2]
[388337664,1759104632255,-199.28531797,0.000258,2]
[388337665,1759104632264,-1637.19352838,0.00025853,2]
[388337666,1759104632273,-518.71881143,0.0002587,2]
[388337667,1759104632283,-1905.90093248,0.00025894,2]
[388337668,1759104632292,-1200.0,0.00025942,2]
[388337670,1759104632301,-300.0,0.00025943,2]
[388337671,1759104632311,-300.0,0.00025943,2]
[388337672,1759104632320,-300.0,0.00025943,2]
[388337673,1759104632330,-300.0,0.00025943,2]
[388337674,1759104632339,-300.0,0.00025943,2]
[388337675,1759104632348,-500.0,0.00025944,2]
[388337676,1759104632358,-500.0,0.00025944,2]
[388337677,1759104632367,-500.0,0.00025944,2]
[388337678,1759104632376,-500.0,0.00025944,2]
[388337679,1759104632385,-500.0,0.00025944,2]
[388337680,1759104632393,-500.0,0.00025944,2]
[388337681,1759104632402,-500.0,0.00025944,2]
[388337682,1759104632411,-500.0,0.00025944,2]
[388337683,1759104632420,-500.0,0.00025944,2]
[388337684,1759104632430,-500.0,0.00025944,2]
[388337685,1759104632439,-500.0,0.00025944,2]
[388337686,1759104632448,-500.0,0.00025944,2]
[388337687,1759104632458,-500.0,0.00025944,2]
[388337688,1759104632467,-357.12998002,0.00025944,2]
[388337689,1759104632476,-500.0,0.00025944,2]
[388337690,1759104632485,-500.0,0.00025944,2]
[388337691,1759104632494,-500.0,0.00025944,2]
[388337692,1759104632503,-500.0,0.00025944,2]
[388337693,1759104632512,-500.0,0.00025944,2]
[388337694,1759104632522,-319.47748495,0.00025944,2]
[388337695,1759104632531,-500.0,0.00025944,2]
[388337696,1759104632540,-500.0,0.00025944,2]
[388337697,1759104632550,-500.0,0.00025944,2]
[388337698,1759104632559,-500.0,0.00025944,2]
[388337699,1759104632568,-500.0,0.00025944,2]
[388337700,1759104632578,-500.0,0.00025944,2]
[388337701,1759104632587,-279.53254942,0.00025944,2]
[388337702,1759104632596,-345.72181532,0.00025944,2]
[388337703,1759104632606,-500.0,0.00025944,2]
[388337704,1759104632616,-500.0,0.00025944,2]
[388337705,1759104632625,-500.0,0.00025944,2]
[388337706,1759104632634,-201.55242667,0.00025944,2]
[388337707,1759104632644,-500.0,0.00025944,2]
[388337708,1759104632654,-500.0,0.00025944,2]
[388337709,1759104632664,-500.0,0.00025944,2]
[388337710,1759104632673,-500.0,0.00025944,2]
[388337711,1759104632682,-500.0,0.00025944,2]
[388337712,1759104632691,-500.0,0.00025944,2]
[388337713,1759104632700,-500.0,0.00025944,2]
[388337714,1759104632709,-500.0,0.00025944,2]
[388337715,1759104632718,-500.0,0.00025944,2]
[388337716,1759104632728,-500.0,0.00025944,2]
[388337717,1759104632738,-500.0,0.00025944,2]
[388337718,1759104632747,-500.0,0.00025944,2]
[388337719,1759104632757,-500.0,0.00025944,2]
[388337720,1759104632766,-2722.80385268,0.00025945,2]
[388337721,1759104632778,-40688.08952721,0.00025945,2]
[388337893,1759104638172,-455.43,0.00025943,10]
[388337894,1759104638181,-243.06339023,0.00025944,2]
[388337895,1759104638190,-450.65113819,0.00025944,2]
[388337896,1759104638199,-1419.43995244,0.00025944,2]
[388337897,1759104638208,-1419.43995244,0.00025944,2]
[388337898,1759104638218,-1419.43995244,0.00025944,2]
[388337899,1759104638227,-1419.43995244,0.00025944,2]
[388337900,1759104638236,-1419.43995244,0.00025944,2]
[388337901,1759104638245,-1419.43995244,0.00025944,2]
[388337902,1759104638254,-1419.43995244,0.00025944,2]
[388337903,1759104638262,-1419.43995244,0.00025944,2]
[388337904,1759104638272,-1419.43995244,0.00025944,2]
[388337905,1759104638281,-1419.43995244,0.00025944,2]
[388337906,1759104638291,-2572.98527291,0.00025945,2]
[388337907,1759104638544,-1200.0,0.00025953,2]
[388337908,1759104638554,-160.0,0.00025955,2]
[388337909,1759104638564,-509.60937698,0.00025959,2]
[388337910,1759104638574,-523.27,0.00025967,3]
[388337911,1759104638583,-281.18554396,0.00025977,2]
[388337912,1759104638592,-161.0,0.00026055,19]
[388337913,1759104638602,-174.41,0.00026454,3]
[388337914,1759104638611,-1426.05699305,0.00026464,2]
[388337915,1759104638620,-1426.05699304,0.00026665,2]
[388337916,1759104638629,-202.74,0.0002682,2]
[388337917,1759104638638,-348.83,0.00026839,3]
[388337918,1759104638648,-1426.05699304,0.00026866,2]
[388337919,1759104638658,-357.97,0.0002689,2]
[388337920,1759104638672,-1395.3,0.0002697,3]
[388337921,1759104638681,-697.65,0.0002697,3]
[388337922,1759104638692,-151.0,0.00026974,2]
[388337923,1759104638701,-151.0,0.00026974,2]
[388337924,1759104638710,-151.0,0.00026974,2]
[388337925,1759104638719,-151.0,0.00026974,2]
[388337926,1759104638728,-151.0,0.00026974,2]
[388337927,1759104638737,-151.0,0.00026974,2]
[388337928,1759104638747,-151.0,0.00026974,2]
[388337929,1759104638756,-151.0,0.00026974,2]
[388337930,1759104638765,-151.0,0.00026974,2]
[388337931,1759104638775,-151.0,0.00026974,2]
[388337932,1759104638784,-151.0,0.00026974,2]
[388337933,1759104638793,-151.0,0.00026974,2]
[388337934,1759104638802,-151.0,0.00026974,2]
[388337935,1759104638812,-151.0,0.00026974,2]
[388337936,1759104638821,-151.0,0.00026974,2]
[388337937,1759104638831,-151.0,0.00026974,2]
[388337938,1759104638840,-294.70866788,0.00026974,2]
[388337939,1759104638850,-91967.7573055,0.0002698,2]
[388337940,1759104638859,-1637.19352832,0.00026982,2]
[388337941,1759104638869,-100000.0,0.0002699,2]
[388337942,1759104638879,-200.0,0.0002699,10]
[388337943,1759104638889,-200.0,0.0002699,10]
[388337944,1759104638900,-200.0,0.0002699,10]
[388337945,1759104638909,-200.0,0.0002699,10]
[388337946,1759104638918,-200.0,0.0002699,10]
[388337947,1759104638928,-200.0,0.0002699,10]
[388337948,1759104638937,-200.0,0.0002699,10]
[388337949,1759104638947,-200.0,0.0002699,10]
[388337950,1759104638956,-247.465403,0.0002699,10]
[388337951,1759104638965,-151.0,0.0002703,2]
[388337952,1759104638975,-250.0,0.0002703,2]
[388337953,1759104638984,-250.0,0.0002703,2]
[388337954,1759104638994,-250.0,0.0002703,2]
[388337955,1759104639004,-250.0,0.0002703,2]
[388337956,1759104639013,-250.0,0.0002703,2]
[388337957,1759104639023,-250.0,0.0002703,2]
[388337958,1759104639032,-250.0,0.0002703,2]
[388337959,1759104639042,-250.0,0.0002703,2]
[388337960,1759104639052,-250.0,0.0002703,2]
[388337961,1759104639063,-250.0,0.0002703,2]
[388337962,1759104639073,-250.0,0.0002703,2]
[388337963,1759104639083,-250.0,0.0002703,2]
[388337964,1759104639092,-284.83084642,0.0002703,2]
[388337965,1759104639102,-500.0,0.0002703,2]
[388337966,1759104639111,-500.0,0.0002703,2]
[388337967,1759104639121,-500.0,0.0002703,2]
[388337968,1759104639130,-500.0,0.0002703,2]
[388337969,1759104639140,-500.0,0.0002703,2]
[388337970,1759104639149,-500.0,0.0002703,2]
[388337971,1759104639158,-500.0,0.0002703,2]
[388337972,1759104639167,-500.0,0.0002703,2]
[388337973,1759104639177,-500.0,0.0002703,2]
[388337974,1759104639187,-500.0,0.0002703,2]
[388337975,1759104639196,-567.8198942,0.0002703,2]
[388337976,1759104639206,-202.89,0.00027032,2]
[388337977,1759104639215,-2402.99318513,0.00027038,2]
[388337978,1759104639225,-1426.05699304,0.00027066,2]
[388337979,1759104639234,-277.0,0.00027073,2]
[388337980,1759104639243,-1426.05699304,0.00027267,2]
[388337981,1759104639252,-2284.69565324,0.00027326,2]
[388337982,1759104639262,-183935.514611,0.00027355,2]
[388337983,1759104639272,-253764.89773941,0.00027365,2]
[388337984,1759104639284,-227852.71249075,0.00027365,2]
[388337985,1759104639293,-250.0,0.00027371,2]
[388337986,1759104639303,-250.0,0.00027371,2]
[388337987,1759104639313,-250.0,0.00027371,2]
[388337988,1759104639322,-250.0,0.00027371,2]
[388337989,1759104639332,-250.0,0.00027371,2]
[388337990,1759104639341,-250.0,0.00027371,2]
[388337991,1759104639350,-250.0,0.00027371,2]
[388337992,1759104639359,-250.0,0.00027371,2]
[388337993,1759104639368,-250.0,0.00027371,2]
[388337994,1759104639377,-250.0,0.00027371,2]
[388337995,1759104639386,-250.0,0.00027371,2]
[388337996,1759104639396,-156.111,0.00027383,2]
[388337997,1759104639405,-480.0,0.00027397,7]
[388337998,1759104639413,-480.0,0.00027397,7]
[388337999,1759104639422,-480.0,0.00027397,7]
[388338000,1759104639431,-517.95,0.00027397,7]
[388338001,1759104639441,-480.0,0.00027397,7]
[388338002,1759104639450,-480.0,0.00027397,7]
[388338003,1759104639459,-480.0,0.00027397,7]
[388338004,1759104639468,-480.0,0.00027397,7]
[388338005,1759104639478,-480.0,0.00027397,7]
[388338006,1759104639488,-382.72254699,0.00027397,7]
[388338007,1759104639497,-480.0,0.00027397,7]
[388338008,1759104639506,-480.0,0.00027397,7]
[388338009,1759104639516,-480.0,0.00027397,7]
[388338010,1759104639526,-160.0,0.00027397,7]
[388338011,1759104639535,-706.9,0.00027397,7]
[388338012,1759104639545,-480.0,0.00027397,7]
[388338013,1759104639555,-480.0,0.00027397,7]
[388338014,1759104639564,-719.32,0.00027397,7]
[388338015,1759104639574,-480.0,0.00027397,7]
[388338016,1759104639583,-480.0,0.00027397,7]
[388338017,1759104639592,-480.0,0.00027397,7]
[388338018,1759104639602,-649.01,0.00027397,7]
[388338019,1759104639611,-293.1272863,0.00027397,7]
[388338020,1759104639621,-480.0,0.00027397,7]
[388338021,1759104639630,-480.0,0.00027397,7]
[388338022,1759104639640,-480.0,0.00027397,7]
[388338023,1759104639650,-246.59979403,0.00027397,7]
[388338024,1759104639660,-480.0,0.00027397,7]
[388338025,1759104639669,-753.33,0.00027397,7]
[388338026,1759104639678,-480.0,0.00027397,7]
[388338027,1759104639690,-551.9,0.00027397,7]
[388338028,1759104639701,-480.0,0.00027397,7]
[388338029,1759104639710,-480.0,0.00027397,7]
[388338030,1759104639720,-480.0,0.00027397,7]
[388338031,1759104639730,-480.0,0.00027397,7]
[388338032,1759104639740,-480.0,0.00027397,7]
[388338033,1759104639749,-480.0,0.00027397,7]
[388338034,1759104639758,-480.0,0.00027397,7]
[388338035,1759104639770,-482.26772594,0.00027397,7]
[388338036,1759104639780,-480.0,0.00027397,7]
[388338037,1759104639790,-786.74,0.00027397,7]
[388338038,1759104639800,-480.0,0.00027397,7]
[388338039,1759104639810,-480.0,0.00027397,7]
[388338040,1759104639820,-480.0,0.00027397,7]
[388338041,1759104639829,-495.32364271,0.00027397,7]
[388338042,1759104639838,-480.0,0.00027397,7]
[388338043,1759104639847,-480.0,0.00027397,7]
[388338044,1759104639857,-480.0,0.00027397,7]
[388338045,1759104639866,-971.76,0.00027397,7]
[388338046,1759104639875,-640.2,0.00027397,7]
[388338047,1759104639885,-480.0,0.00027397,7]
[388338048,1759104639894,-480.0,0.00027397,7]
[388338049,1759104639903,-480.0,0.00027397,7]
[388338050,1759104639912,-520.0,0.00027397,3]
[388338051,1759104639922,-621.5,0.00027397,7]
[388338052,1759104639931,-480.0,0.00027397,7]
[388338053,1759104639940,-480.0,0.00027397,7]
[388338054,1759104639949,-480.0,0.00027397,7]
[388338055,1759104639958,-783.63,0.00027397,7]
[388338056,1759104639967,-480.0,0.00027397,7]
[388338057,1759104639976,-480.0,0.00027397,7]
[388338058,1759104639986,-1072.13,0.00027397,7]
[388338059,1759104639995,-480.0,0.00027397,7]
[388338060,1759104640004,-480.0,0.00027397,7]
[388338061,1759104640013,-480.0,0.00027397,7]
[388338062,1759104640022,-480.0,0.00027397,7]
[388338063,1759104640031,-480.0,0.00027397,7]
[388338064,1759104640040,-842.73,0.00027397,7]
[388338065,1759104640049,-607.95,0.00027397,7]
[388338066,1759104640059,-508.18,0.00027397,7]
[388338067,1759104640068,-480.0,0.00027397,7]
[388338068,1759104640077,-642.9,0.00027397,7]
[388338069,1759104640086,-480.0,0.00027397,7]
[388338070,1759104640096,-480.0,0.00027397,7]
[388338071,1759104640105,-480.0,0.00027397,7]
[388338072,1759104640114,-1167.46,0.00027397,7]
[388338073,1759104640123,-480.0,0.00027397,7]
[388338074,1759104640133,-480.0,0.00027397,7]
[388338075,1759104640142,-480.0,0.00027397,7]
[388338076,1759104640151,-691.89,0.00027397,7]
[388338077,1759104640160,-711.36,0.00027397,7]
[388338078,1759104640169,-480.0,0.00027397,7]
[388338079,1759104640178,-615.17,0.00027397,7]
[388338080,1759104640187,-480.0,0.00027397,7]
[388338081,1759104640196,-480.0,0.00027397,7]
[388338082,1759104640206,-480.0,0.00027397,7]
[388338083,1759104640215,-480.0,0.00027397,7]
[388338084,1759104640224,-621.19,0.00027397,7]
[388338085,1759104640234,-536.77,0.00027397,7]
[388338086,1759104640243,-480.0,0.00027397,7]
[388338087,1759104640251,-668.74,0.00027397,7]
[388338088,1759104640260,-480.0,0.00027397,7]
[388338089,1759104640269,-480.0,0.00027397,7]
[388338090,1759104640278,-537.98,0.00027397,7]
[388338091,1759104640287,-480.0,0.00027397,7]
[388338092,1759104640296,-480.0,0.00027397,7]
[388338093,1759104640306,-950.07,0.00027397,7]
[388338094,1759104640315,-631.79,0.00027397,7]
[388338095,1759104640324,-480.0,0.00027397,7]
[388338096,1759104640333,-899.63,0.00027397,7]
[388338097,1759104640342,-622.35,0.00027397,7]
[388338098,1759104640351,-2359.69,0.00027397,7]
[388338099,1759104640360,-510.03,0.00027397,7]
[388338100,1759104640369,-480.0,0.00027397,7]
[388338101,1759104640378,-480.0,0.00027397,7]
[388338102,1759104640387,-508.03,0.00027397,7]
[388338103,1759104640396,-737.48,0.00027397,7]
[388338104,1759104640405,-480.0,0.00027397,7]
[388338105,1759104640414,-480.0,0.00027397,7]
[388338106,1759104640423,-480.0,0.00027397,7]
[388338107,1759104640432,-677.79,0.00027397,7]
[388338108,1759104640441,-480.0,0.00027397,7]
[388338109,1759104640450,-496.25,0.00027397,7]
[388338110,1759104640459,-999.45,0.00027397,7]
[388338111,1759104640468,-480.0,0.00027397,7]
[388338112,1759104640478,-581.96,0.00027397,7]
[388338113,1759104640487,-508.99,0.00027397,7]
[388338114,1759104640496,-480.0,0.00027397,7]
[388338115,1759104640506,-933.08,0.00027397,7]
[388338116,1759104640515,-480.0,0.00027397,7]
[388338117,1759104640525,-480.0,0.00027397,7]
[388338118,1759104640534,-480.0,0.00027397,7]
[388338119,1759104640544,-468.94015781,0.00027397,7]
[388338120,1759104640554,-392.08824584,0.00027397,7]
[388338121,1759104640565,-480.0,0.00027397,7]
[388338122,1759104640574,-1238.73,0.00027397,7]
[388338123,1759104640582,-480.0,0.00027397,7]
[388338124,1759104640591,-836.89,0.00027397,7]
[388338125,1759104640600,-480.0,0.00027397,7]
[388338126,1759104640610,-480.0,0.00027397,7]
[388338127,1759104640619,-480.0,0.00027397,7]
[388338128,1759104640628,-624.09,0.00027397,7]
[388338129,1759104640638,-1278.10396674,0.00027397,7]
[388338290,1759104897582,320.0,0.00025205,2]
[388338305,1759104985269,1000.0,0.00024942,2]
[388338310,1759105008808,207.34047464,0.00025165,4]
[388338323,1759105127410,5037.5222297,0.00024705,2]
[388338340,1759105176405,151.8266036,0.00025201,2]
[388338341,1759105178140,273.28788648,0.00025201,2]
[388338343,1759105180121,485.84513152,0.00025201,2]
[388338347,1759105182227,759.13301801,0.00025201,2]
[388338348,1759105184309,1092.05839438,0.00025201,2]
[388338375,1759105252184,135.88465926,0.00025201,2]
[388338376,1759105252206,224.63692908,0.00025201,2]
[388338378,1759105254128,200.2897713,0.00025201,2]
[388338381,1759105256085,640.92726816,0.00025201,2]
[388338382,1759105258027,1001.44885651,0.00025201,2]
[388338384,1759105260128,1440.64426701,0.00025201,2]
[388338390,1759105279139,5000.0,0.00025205,2]
[388338405,1759105308965,1492.06290794,0.00025205,2]
[388338406,1759105308986,2095.5785875,0.00025205,2]
[388338414,1759105331521,5000.0,0.00025205,2]
[388338421,1759105355541,1954.33677973,0.00025205,2]
[388338428,1759105363607,1252.48627436,0.00025205,2]
[388338432,1759105379351,1793.18694591,0.00025205,2]
[388338433,1759105379378,1252.47627436,0.00025205,2]
[388338439,1759105402312,1239.3164377,0.00025205,2]
[388338444,1759105410355,2618.72528713,0.00025205,2]
[388338445,1759105414661,203.680042,0.00024542,2]
[388338451,1759105432948,2381.27471287,0.00025205,2]
[388338456,1759105441296,1282.8534212,0.00024533,2]
[388338462,1759105463894,1021.68382474,0.00025205,2]
[388338463,1759105463919,3978.31617526,0.00025205,2]
[388338464,1759105472468,5000.0,0.00025205,2]
[388338466,1759105478726,769.91553699,0.00023977,5]
[388338467,1759105480783,251.77828775,0.00025205,2]
[388338468,1759105480807,2559.46865603,0.00025205,2]
[388338469,1759105485841,5009.1888888,0.00024792,2]
[388338470,1759105488954,2431.35245517,0.00025205,2]
[388338471,1759105488976,454.60132913,0.00025205,2]
[388338472,1759105496845,5000.0,0.00025205,2]
[388338475,1759105520155,4545.40867087,0.00025205,2]
[388338476,1759105520182,454.59132913,0.00025205,2]
[388338477,1759105521175,304.4874444,0.00024596,2]
[388338483,1759105543720,5000.0,0.00025205,2]
[388338485,1759105566437,4240.93122647,0.00025205,2]
[388338486,1759105566462,759.06877353,0.00025205,2]
[388338487,1759105574850,4266.666282,0.00025205,2]
[388338489,1759105581632,235.12,0.00025,2]
[388338494,1759105590697,4739.15494447,0.00025205,2]
[388338495,1759105590719,260.84505553,0.00025205,2]
[388338503,1759105613121,-375.37804049,0.00025205,2]
[388338504,1759105613146,-13.32954493,0.00025266,2]
[388338506,1759105614340,5000.0,0.00025205,2]
[388338514,1759105636934,5000.0,0.00025205,2]
[388338519,1759105643383,675.383998,0.00024313,2]
[388338531,1759105660126,2554.32677973,0.00025205,2]
[388338546,1759105716301,1770.29922227,0.0002,2]
[388338547,1759105716323,6773.80762219,0.0002,2]
[388338548,1759105716544,270.56960696,0.00022,7]
[388338549,1759105717305,2955.63277085,0.0002,2]
[388338550,1759105717327,1083.05077765,0.0002,2]
[388338553,1759105722024,8916.95922235,0.00019063,7]
[388338554,1759105722046,10000.01,0.00019063,7]
[388338555,1759105722069,10000.01,0.00019063,7]
[388338556,1759105722091,10000.01,0.00019063,7]
[388338557,1759105722112,10000.01,0.00019063,7]
[388338558,1759105722134,10000.01,0.00019063,7]
[388338559,1759105722155,10000.01,0.00019063,7]
[388338560,1759105722176,10000.01,0.00019063,7]
[388338561,1759105722203,9936.50131644,0.00019063,7]
[388338562,1759105722296,63.50868356,0.00025201,2]
[388338563,1759105722791,10000.01,0.0002,2]
[388338571,1759105739636,-243.56662982,0.00025201,2]
[388338574,1759105742449,-5.15638283,0.00025201,2]
[388338575,1759105742471,-562.01705318,0.00025201,2]
[388338576,1759105742494,-760.54656399,0.00025201,2]
[388338577,1759105742959,300.0,0.000252,2]
[388338578,1759105744207,-238.59486389,0.00025201,2]
[388338579,1759105744233,-106.65435709,0.00025201,2]
[388338580,1759105747391,-480.0,0.00025201,2]
[388338582,1759105748154,6068.0143586,0.00024308,2]
[388338583,1759105749980,653.92906925,0.00025201,2]
[388338585,1759105751632,-480.0,0.00025201,2]
[388338587,1759105753684,-480.0,0.00025201,2]
[388338588,1759105758575,-14.50412397,0.00025201,2]
[388338589,1759105758602,-2248.06821273,0.00025201,2]
[388338590,1759105758629,-2414.99470372,0.00025201,2]
[388338596,1759105768563,-644.87591916,0.00025201,2]
[388338597,1759105768592,-3996.56571152,0.00025201,2]
[388338604,1759105780371,1499.32546336,0.00024023,5]
[388338605,1759105780733,-154.49509221,0.00025201,2]
[388338608,1759105784617,-203.45255763,0.00025201,2]
[388338611,1759105788907,-1218.71,0.00025201,2]
[388338612,1759105790253,-773.32991866,0.00025201,2]
[388338614,1759105795417,-459.80081213,0.00025201,2]
[388338617,1759105799407,-166.50567851,0.00025201,2]
[388338618,1759105801301,180.0,0.000252,2]
[388338620,1759105802073,258.0,0.000252,2]
[388338621,1759105802545,300.0,0.000252,2]
[388338622,1759105802682,300.0,0.000252,2]
[388338623,1759105803023,1200.0,0.000252,2]
[388338624,1759105804037,-489.92513588,0.00025201,2]
[388338626,1759105807119,151.0,0.00024467,2]
[388338627,1759105811936,-345.50490779,0.00025201,2]
[388338629,1759105814256,-184.7570488,0.00025201,2]
[388338631,1759105816192,-447.13878956,0.00025201,2]
[388338633,1759105819260,-300.0,0.00025201,2]
[388338634,1759105824610,-203.56282027,0.00025201,2]
[388338637,1759105826969,-197.9511373,0.00025201,2]
[388338638,1759105828613,-204.48596234,0.00025201,2]
[388338640,1759105831190,-155.26647262,0.00025201,2]
[388338660,1759105832132,-47961.33286132,0.00025201,2]
[388338661,1759105832142,-1586.87613014,0.00025201,2]
[388338662,1759105832152,-160.9899598,0.00025201,2]
[388338663,1759105832161,-289.78192764,0.00025201,2]
[388338664,1759105832171,-515.16787136,0.00025201,2]
[388338665,1759105832181,-804.94979901,0.00025201,2]
[388338666,1759105832190,-1157.96858286,0.00025201,2]
[388338667,1759105832200,-258.83917757,0.00025201,2]
[388338668,1759105832211,-295.81620294,0.00025201,2]
[388338669,1759105832223,-462.21281709,0.00025201,2]
[388338670,1759105832233,-664.92087016,0.00025201,2]
[388338671,1759105832244,-345.24922098,0.00025201,2]
[388338672,1759105832255,-353.16059161,0.00025201,2]
[388338673,1759105832266,-635.6890649,0.00025201,2]
[388338674,1759105832276,-3823.37397558,0.00025205,7]
[388338675,1759105832288,-2207.99451736,0.00025205,7]
[388338676,1759105832302,-801.15340946,0.00025205,7]
[388338677,1759105832312,-973.57,0.00025205,7]
[388338678,1759105832333,-12974.47859611,0.00025205,7]
[388338679,1759105833530,500.0,0.000252,2]
[388338680,1759105833558,500.0,0.000252,2]
[388338681,1759105833592,500.0,0.000252,2]
[388338682,1759105833620,253.28139438,0.000252,2]
[388338683,1759105833646,500.0,0.000252,2]
[388338684,1759105833672,500.0,0.000252,2]
[388338685,1759105833699,500.0,0.000252,2]
[388338686,1759105833734,500.0,0.000252,2]
[388338687,1759105833760,500.0,0.000252,2]
[388338688,1759105833788,500.0,0.000252,2]
[388338689,1759105833816,500.0,0.000252,2]
[388338690,1759105833852,500.0,0.000252,2]
[388338691,1759105833879,358.40314226,0.000252,2]
[388338692,1759105833901,141.59685774,0.000252,2]
[388338693,1759105833927,595.0,0.000252,2]
[388338694,1759105833958,500.0,0.000252,2]
[388338695,1759105833984,500.0,0.000252,2]
[388338696,1759105834010,500.0,0.000252,2]
[388338697,1759105834036,500.0,0.000252,2]
[388338698,1759105834067,233.55970937,0.000252,2]
[388338699,1759105834094,500.0,0.000252,2]
[388338700,1759105834124,500.0,0.000252,2]
[388338701,1759105834149,500.0,0.000252,2]
[388338702,1759105834174,247.84509212,0.000252,2]
[388338703,1759105834204,500.0,0.000252,2]
[388338704,1759105834242,500.0,0.000252,2]
[388338705,1759105834268,500.0,0.000252,2]
[388338706,1759105834302,609.28485738,0.000252,2]
[388338707,1759105834327,500.0,0.000252,2]
[388338708,1759105834352,500.0,0.000252,2]
[388338709,1759105834377,500.0,0.000252,2]
[388338710,1759105834406,500.0,0.000252,2]
[388338711,1759105834454,500.0,0.000252,2]
[388338712,1759105834523,500.0,0.000252,2]
[388338713,1759105834554,172.72348339,0.000252,2]
[388338714,1759105834575,327.27651661,0.000252,2]
[388338715,1759105834608,500.0,0.000252,2]
[388338716,1759105834647,500.0,0.000252,2]
[388338717,1759105834816,-158.9131495,0.00025201,2]
[388338836,1759105836095,-160.30752746,0.00025201,2]
[388339040,1759105838016,-810.8932162,0.00025201,2]
[388339042,1759105838026,-1765.80295806,0.00025201,2]
[388339044,1759105838036,-2540.21350335,0.00025201,2]
[388339046,1759105838046,-270.39046944,0.00025204,2]
[388339048,1759105838056,-566.85978209,0.00025204,2]
[388339050,1759105838065,-1942.71789829,0.00025204,2]
[388339052,1759105838075,-1942.71789829,0.00025204,2]
[388339054,1759105838085,-1942.71789829,0.00025204,2]
[388339056,1759105838095,-1942.71789829,0.00025204,2]
[388339057,1759105838106,-1942.71789829,0.00025204,2]
[388339058,1759105838116,-1942.71789829,0.00025204,2]
[388339059,1759105838127,-1942.71789829,0.00025204,2]
[388339060,1759105838137,-1942.71789829,0.00025204,2]
[388339061,1759105838147,-1942.71789829,0.00025204,2]
[388339062,1759105838157,-1942.71789829,0.00025204,2]
[388339063,1759105838167,-1942.71789829,0.00025204,2]
[388339064,1759105838178,-1942.71789829,0.00025204,2]
[388339065,1759105838187,-1942.71789829,0.00025204,2]
[388339066,1759105838197,-1942.71789829,0.00025204,2]
[388339067,1759105838210,-16140.42950149,0.00025205,7]
[388339068,1759105838220,-160.0,0.00025266,2]
[388339069,1759105838230,-298.74,0.00025316,10]
[388339070,1759105838239,-358.49,0.00025317,10]
[388339071,1759105838250,-1200.0,0.00025324,2]
[388339072,1759105838260,-1072.98588114,0.00025325,2]
[388339073,1759105838272,-500.0,0.00025326,2]
[388339074,1759105838283,-4386.0908131,0.00025328,2]
[388339075,1759105838294,-1000.0,0.000255,2]
[388339076,1759105838304,-500.0,0.000256,2]
[388339077,1759105838313,-153.20575463,0.00025741,5]
[388339078,1759105838323,-783.81633187,0.000258,2]
[388339079,1759105838333,-430.19,0.0002588,10]
[388339080,1759105838342,-37374.2689503,0.0002589,2]
[388339081,1759105838353,-643.94294646,0.00025901,2]
[388339082,1759105838364,-1000.0,0.00025914,2]